bitfinex-derivatives/quotes_SOLF0:USTF0_20241105
["timestamp","ask_amount","ask_price","bid_price","bid_amount"]
[1730821385245,3.0151,165.86,165.82,3.0157]
[1730821385451,23.16564808,165.9,165.78,0.23611]
[1730821385645,1.2908,165.85,165.78,0.23611]
[1730821385841,23.16564808,165.81,165.73,1.0]
[1730821386344,3.0163,165.79,165.73,1.0]
[1730821386549,23.16564808,165.81,165.73,1.0]
[1730821387143,3.0165,165.78,165.73,4.0173]
[1730821387347,23.16564808,165.81,165.73,1.0]
[1730821388147,3.0164,165.79,165.74,3.017]
[1730821388550,3.0164,165.79,165.73,1.0]
[1730821388750,3.0164,165.79,165.75,3.017]
[1730821389246,3.0165,165.78,165.73,1.0]
[1730821389750,3.0163,165.79,165.74,3.017]
[1730821389952,3.0163,165.79,165.73,1.0]
[1730821390347,3.0161,165.8,165.76,3.0167]
[1730821390545,29.12304808,165.84,165.76,3.0167]
[1730821390847,29.12304808,165.84,165.73,1.0]
[1730821391048,3.0157,165.82,165.77,3.0166]
[1730821391248,29.12304808,165.84,165.77,3.0166]
[1730821391553,3.0166,165.78,165.73,4.0173]
[1730821391747,23.16564808,165.82,165.73,4.0173]
[1730821392149,3.0168,165.76,165.73,1.0]
[1730821392553,23.16564808,165.82,165.73,1.0]
[1730821393249,24.44304808,165.84,165.73,1.0]
[1730821393451,1.2774,165.84,165.73,24.16564808]
[1730821394043,1.2774,165.84,165.79,3.0161]
[1730821394848,1.2774,165.84,165.76,4.68]
[1730821395047,3.016,165.81,165.77,3.0166]
[1730821395247,1.2774,165.84,165.76,4.68]
[1730821395742,3.016,165.81,165.76,4.68]
[1730821396354,3.0163,165.79,165.76,4.68]
[1730821396652,24.44304808,165.84,165.76,4.68]
[1730821397051,1.2908,165.85,165.76,4.68]
[1730821397242,23.16564808,165.91,165.77,23.16564808]
[1730821397446,24.51184808,165.89,165.79,3.0162]
[1730821397641,24.51184808,165.89,165.76,4.68]
[1730821397956,23.16564808,165.86,165.75,4.68]
[1730821398158,3.016,165.81,165.77,3.0165]
[1730821398359,1.2831,165.85,165.77,3.0165]
[1730821399255,3.0156,165.83,165.77,3.0165]
[1730821399455,1.2831,165.85,165.79,3.0162]
[1730821400048,23.16564808,165.8,165.73,1.0]
[1730821400254,23.16564808,165.78,165.73,1.0]
[1730821400456,3.0168,165.77,165.73,1.0]
[1730821400658,2.6413,165.79,165.73,1.0]
[1730821401056,23.16564808,165.78,165.73,1.0]
[1730821401355,23.16564808,165.78,165.66,4.68]
[1730821401554,1.3986,165.77,165.66,4.68]
[1730821401754,1.3986,165.77,165.65,2.6322]
[1730821401755,3.0176,165.72,165.65,2.6322]
[1730821401955,3.0176,165.72,165.66,4.68]
[1730821402155,23.16564808,165.76,165.66,4.68]
[1730821402651,26.11337726,165.76,165.66,4.68]
[1730821403559,3.0168,165.77,165.69,3.0179]
[1730821403756,1.3562,165.79,165.66,27.84564808]
[1730821404355,3.0171,165.75,165.66,27.84564808]
[1730821404958,1.3562,165.79,165.66,27.84564808]
[1730821405162,1.3562,165.79,165.69,23.16564808]
[1730821405163,4.3725,165.79,165.69,23.16564808]
[1730821405455,1.3562,165.79,165.69,23.16564808]
[1730821405655,3.0168,165.76,165.69,23.16564808]
[1730821405860,3.0168,165.76,165.66,27.84564808]
[1730821406454,3.0168,165.76,165.71,3.0176]
[1730821407061,3.0168,165.76,165.66,27.84564808]
[1730821407261,3.0167,165.77,165.73,3.0173]
[1730821407659,3.0167,165.77,165.69,23.16564808]
[1730821407963,3.0167,165.77,165.73,3.0173]
[1730821408154,3.0165,165.78,165.73,3.0173]
[1730821408754,1.3562,165.79,165.69,23.16564808]
[1730821408755,1.3562,165.79,165.75,3.0168]
[1730821408959,25.92734808,165.85,165.72,27.84564808]
[1730821409165,25.92734808,165.85,165.62,1.3284]
[1730821409166,1.2745,165.84,165.74,23.16564808]
[1730821409364,4.29,165.84,165.75,4.68]
[1730821409859,4.29,165.84,165.77,3.0165]
[1730821410067,3.0156,165.83,165.75,4.68]
[1730821410366,3.0156,165.83,165.78,3.0163]
[1730821410860,1.2745,165.84,165.75,4.68]
[1730821411064,1.2745,165.84,165.71,1.2832]
[1730821411065,1.2745,165.84,165.71,27.42338226]
[1730821411264,1.2745,165.84,165.72,4.66]
[1730821411460,3.0162,165.8,165.75,3.0168]
[1730821411660,1.2745,165.84,165.72,4.66]
[1730821411872,23.16564808,165.83,165.72,4.66]
[1730821412062,3.0165,165.78,165.74,3.0171]
[1730821412263,3.0165,165.78,165.72,4.66]
[1730821412264,23.16564808,165.8,165.71,4.66]
[1730821412868,3.017,165.76,165.71,7.6776]
[1730821413068,23.16564808,165.8,165.71,7.6776]
[1730821413268,23.16564808,165.8,165.65,24.46944808]
[1730821413567,23.16564808,165.78,165.69,3.0179]
[1730821413768,2.686,165.77,165.69,3.0179]
[1730821414171,3.0172,165.74,165.69,3.0179]
[1730821414468,1.3449,165.76,165.7,3.0178]
[1730821415267,3.0172,165.74,165.7,3.0178]
[1730821416471,3.017,165.75,165.7,3.0178]
[1730821417074,3.017,165.75,165.71,3.0176]
[1730821417270,1.3449,165.76,165.68,4.66]
[1730821417571,1.3449,165.76,165.73,3.0173]
[1730821417770,3.0164,165.79,165.68,27.82564808]
[1730821417975,2.7677,165.81,165.68,27.82564808]
[1730821418568,2.7677,165.81,165.73,3.0173]
[1730821418774,23.16564808,165.8,165.68,4.66]
[1730821419074,3.0171,165.75,165.71,3.0176]
[1730821419271,23.16564808,165.8,165.68,27.82564808]
[1730821419876,3.0167,165.77,165.72,3.0174]
[1730821420077,3.0167,165.77,165.68,27.82564808]
[1730821420469,3.0166,165.78,165.73,3.0173]
[1730821420975,3.0163,165.79,165.74,3.0171]
[1730821422276,2.7677,165.81,165.71,4.66]
[1730821423274,2.7677,165.81,165.73,3.0172]
[1730821423475,2.7677,165.81,165.71,4.66]
[1730821423873,3.0164,165.79,165.74,3.017]
[1730821424265,3.0164,165.79,165.75,3.0169]
[1730821424467,23.16564808,165.88,165.74,23.16564808]
[1730821424679,2.7515,165.88,165.77,23.16564808]
[1730821424888,2.7515,165.88,165.79,23.16564808]
[1730821425178,1.3242,165.93,165.82,23.16564808]
[1730821425974,3.0142,165.91,165.82,23.16564808]
[1730821426169,25.91714808,165.96,165.82,23.16564808]
[1730821426580,25.91714808,165.96,165.87,3.0147]
[1730821426774,25.91714808,165.96,165.88,4.66]
[1730821426974,3.0138,165.93,165.88,7.6746]
[1730821428881,3.0136,165.94,165.88,4.66]
[1730821429083,23.16564808,165.94,165.88,4.66]
[1730821429985,23.16564808,165.94,165.83,4.66]
[1730821430190,23.16564808,165.91,165.83,4.66]
[1730821430378,1.3337,165.9,165.83,4.66]
[1730821430973,3.0146,165.88,165.83,4.66]
[1730821431182,1.3337,165.9,165.83,4.66]
[1730821431680,3.0149,165.87,165.83,4.66]
[1730821432283,3.0151,165.86,165.83,4.66]
[1730821432982,1.3337,165.9,165.83,4.66]
[1730821433282,3.0148,165.88,165.83,7.6754]
[1730821433484,1.3337,165.9,165.83,4.66]
[1730821433679,3.0145,165.89,165.84,3.0152]
[1730821433879,23.16564808,165.94,165.83,4.66]
[1730821434079,3.0141,165.91,165.86,3.0149]
[1730821434377,3.0141,165.91,165.83,4.66]
[1730821434683,3.0141,165.91,165.85,3.0151]
[1730821434881,3.0141,165.91,165.83,4.66]
[1730821435081,3.0137,165.93,165.83,4.66]
[1730821435280,3.0137,165.93,165.88,3.0145]
[1730821435481,65.21901056,166.02,165.89,4.66]
[1730821435678,3.0134,165.95,165.89,4.66]
[1730821436088,4.22761452,166.01,165.89,4.66]
[1730821436281,1.3829,165.96,165.89,4.66]
[1730821436681,3.0139,165.93,165.89,4.66]
[1730821437282,1.3829,165.96,165.89,4.66]
[1730821438085,3.0139,165.93,165.89,4.66]
[1730821438481,3.0137,165.94,165.89,7.6744]
[1730821438688,1.3829,165.96,165.89,7.6744]
[1730821438983,1.3829,165.96,165.85,4.66]
[1730821438984,23.16564808,165.95,165.85,4.66]
[1730821439380,23.16564808,165.95,165.86,3.015]
[1730821439581,23.16564808,165.95,165.85,4.66]
[1730821439986,23.16564808,165.95,165.86,3.0148]
[1730821440492,3.0142,165.91,165.86,3.0148]
[1730821440887,23.16564808,165.95,165.86,3.0148]
[1730821441587,23.16564808,165.93,165.85,4.66]
[1730821441779,23.16564808,165.93,165.84,7.6552]
[1730821442087,1.3829,165.96,165.84,4.64]
[1730821442485,24.54854808,165.96,165.84,4.64]
[1730821442684,3.0141,165.92,165.87,3.0148]
[1730821443085,24.54854808,165.96,165.87,3.0148]
[1730821443284,1.3829,165.96,165.84,4.64]
[1730821443486,1.295,166.0,165.86,23.16564808]
[1730821443883,3.013,165.98,165.93,3.0135]
[1730821444589,2.5818,166.01,165.91,4.64]
[1730821445491,3.0125,166.0,165.95,3.0133]
[1730821446086,3.0125,166.0,165.91,4.64]
[1730821446992,3.0125,166.0,165.95,3.0132]
[1730821447382,2.5818,166.01,165.96,3.013]
[1730821447791,2.5818,166.01,165.91,4.64]
[1730821448397,3.0128,165.99,165.94,3.0134]
[1730821449295,3.0139,165.93,165.89,4.64]
[1730821449495,23.16564808,165.99,165.89,4.64]
[1730821449892,3.0132,165.96,165.91,3.0139]
[1730821450093,3.0132,165.96,165.89,4.64]
[1730821450395,3.0132,165.96,165.91,3.0139]
[1730821450597,3.0134,165.95,165.91,3.0139]
[1730821451700,1.3398,166.0,165.89,4.64]
[1730821452090,1.3095,166.01,165.89,4.64]
[1730821452295,3.0127,165.99,165.89,4.64]
[1730821453409,23.16564808,166.04,165.91,23.16564808]
[1730821453711,3.0126,166.0,165.91,23.16564808]
[1730821453904,23.16564808,166.04,165.91,23.16564808]
[1730821454100,1.3981,166.05,165.94,23.16564808]
[1730821454411,1.3981,166.05,165.95,4.64]
[1730821454610,1.3981,166.05,165.95,7.3502]
[1730821454797,1.3981,166.05,165.95,8.6302]
[1730821455002,3.0119,166.04,165.99,3.0125]
[1730821455203,1.3981,166.05,165.99,3.0125]
[1730821455499,1.3981,166.05,165.95,8.6302]
[1730821455703,3.0118,166.04,165.95,8.6302]
[1730821456104,1.3981,166.05,165.95,8.6302]
[1730821456306,1.3981,166.05,165.98,3.0128]
[1730821456503,1.3981,166.05,165.95,8.6302]
[1730821456703,3.0124,166.01,165.96,3.013]
[1730821456904,3.0124,166.01,165.95,8.6302]
[1730821457604,3.0127,165.99,165.91,23.16564808]
[1730821457804,23.16564808,166.04,165.92,4.64]
[1730821458402,1.3981,166.05,165.92,4.64]
[1730821458915,3.0123,166.01,165.92,4.64]
[1730821459305,3.0123,166.01,165.96,3.013]
[1730821459507,23.16564808,166.04,165.92,4.64]
[1730821459716,23.16564808,166.02,165.93,4.64]
[1730821460615,3.0133,165.96,165.91,7.6539]
[1730821460813,23.16564808,166.02,165.78,6.0329]
[1730821460814,23.16564808,165.99,165.88,4.64]
[1730821461012,23.16564808,165.96,165.88,4.64]
[1730821461309,3.0139,165.93,165.88,4.64]
[1730821461817,23.16564808,165.96,165.89,3.0144]
[1730821461818,3.0136,165.94,165.89,3.0144]
[1730821462304,3.0135,165.95,165.9,3.0142]
[1730821462509,23.16564808,165.99,165.88,4.64]
[1730821463613,3.0134,165.95,165.9,3.0142]
[1730821464204,23.16564808,165.99,165.88,4.64]
[1730821464602,3.013,165.97,165.91,3.014]
[1730821464807,3.013,165.97,165.88,4.64]
[1730821465021,2.5848,166.01,165.89,23.16564808]
[1730821465221,4.2865,166.01,165.91,23.16564808]
[1730821465411,1.3981,166.05,165.91,23.16564808]
[1730821466218,1.3981,166.05,165.94,23.16564808]
[1730821466518,1.3981,166.05,165.95,4.64]
[1730821467106,3.0121,166.02,165.96,3.013]
[1730821468317,1.3981,166.05,165.95,4.64]
[1730821468621,3.0125,166.0,165.95,7.6533]
[1730821469015,2.641,166.04,165.96,4.64]
[1730821470511,2.641,166.04,165.96,7.653]
[1730821471020,2.641,166.04,165.89,3.9731]
[1730821471221,2.641,166.04,165.9,4.64]
[1730821471818,3.0125,166.0,165.9,4.64]
[1730821472123,2.641,166.04,165.92,23.16564808]
[1730821472321,3.0122,166.02,165.96,3.013]
[1730821472521,2.641,166.04,165.96,7.653]
[1730821473124,2.641,166.04,165.96,4.64]
[1730821473326,3.0126,166.0,165.96,4.64]
[1730821473517,2.641,166.04,165.96,4.64]
[1730821473922,3.0128,165.99,165.96,4.64]
[1730821475326,3.013,165.97,165.96,4.64]
[1730821475628,23.16564808,166.03,165.92,4.64]
[1730821475924,23.16564808,166.03,165.94,3.0135]
[1730821476127,23.16564808,166.03,165.92,4.64]
[1730821477021,23.16564808,166.03,165.92,7.6539]
[1730821477223,23.16564808,166.03,165.92,4.64]
[1730821477622,14.47200113,166.01,165.92,4.64]
[1730821478223,3.0128,165.99,165.93,3.0137]
[1730821478524,14.47200113,166.01,165.93,3.0137]
[1730821479215,3.013,165.97,165.93,3.0137]
[1730821480221,3.0132,165.96,165.93,3.0137]
[1730821481131,3.0132,165.96,165.92,4.64]
[1730821481326,3.0134,165.95,165.92,4.64]
[1730821482122,3.0134,165.95,165.9,14.47200113]
[1730821482432,14.47200113,165.93,165.82,65.00792303]
[1730821482725,14.47200113,165.93,165.82,68.02950498]
[1730821482930,3.0139,165.92,165.88,3.0146]
[1730821483128,2.6922,165.97,165.87,14.47200113]
[1730821483328,2.6922,165.97,165.87,19.11200113]
[1730821483526,2.6922,165.97,165.87,4.64]
[1730821484126,3.0137,165.94,165.89,3.0144]
[1730821484433,2.6922,165.97,165.87,4.64]
[1730821484628,1.3624,165.96,165.87,4.64]
[1730821484931,1.3624,165.96,165.87,7.6548]
[1730821485527,3.0141,165.92,165.88,3.0146]
[1730821486319,1.3624,165.96,165.87,4.64]
[1730821486529,3.0139,165.93,165.89,3.0144]
[1730821487231,3.0137,165.94,165.88,3.0146]
[1730821487431,1.3624,165.96,165.87,4.64]
[1730821487928,3.0144,165.9,165.87,4.64]
[1730821488635,3.014,165.92,165.87,4.64]
[1730821488833,14.47200113,165.94,165.87,7.6548]
[1730821489133,3.0141,165.92,165.87,7.6548]
[1730821489339,14.47200113,165.94,165.87,7.6548]
[1730821489931,15.83440113,165.96,165.87,7.6548]
[1730821490330,3.0142,165.91,165.87,7.6548]
[1730821491236,3.0139,165.93,165.89,3.0143]
[1730821491739,3.0134,165.95,165.87,4.64]
[1730821491939,1.3624,165.96,165.87,4.64]
[1730821492323,1.3624,165.96,165.89,14.47200113]
[1730821493038,3.0135,165.95,165.91,3.0139]
[1730821494038,3.013,165.98,165.94,3.0135]
[1730821494542,3.013,165.98,165.92,14.47200113]
[1730821495528,3.013,165.98,165.94,3.0134]
[1730821497142,15.78870113,166.02,165.92,14.47200113]
[1730821497143,3.0127,165.99,165.92,14.47200113]
[1730821497730,15.78870113,166.02,165.94,3.0134]
[1730821497927,15.78870113,166.02,165.92,14.47200113]
[1730821498335,3.0127,165.99,165.95,3.0134]
[1730821500429,15.78870113,166.02,165.93,4.64]
[1730821500632,14.47200113,166.0,165.9,19.09200113]
[1730821500831,2.6352,165.99,165.92,14.47200113]
[1730821501040,3.0127,165.99,165.95,3.0132]
[1730821501453,15.78870113,166.02,165.92,14.47200113]
[1730821501642,14.47200113,166.0,165.9,4.62]
[1730821502249,3.0133,165.96,165.92,3.0139]
[1730821503149,3.0129,165.98,165.92,3.0139]
[1730821503352,14.47200113,165.97,165.88,3.0145]
[1730821503546,15.77800113,165.97,165.87,14.47200113]
[1730821503753,1.306,165.97,165.89,14.47200113]
[1730821503952,15.78870113,166.02,165.91,14.47200113]
[1730821504150,3.0128,165.99,165.91,14.47200113]
[1730821504355,3.0128,165.99,165.94,3.0134]
[1730821504754,15.78870113,166.02,165.93,14.47200113]
[1730821504949,1.3167,166.02,165.96,3.0131]
[1730821505258,1.3167,166.02,165.93,19.09200113]
[1730821505457,1.3167,166.02,165.95,3.0134]
[1730821506052,1.3167,166.02,165.93,7.6336]
[1730821506356,1.3167,166.02,165.93,4.62]
[1730821506562,3.0132,165.97,165.93,4.62]
[1730821506948,15.78870113,166.02,165.93,4.62]
[1730821507357,3.0129,165.98,165.93,7.6337]
[1730821507654,15.78870113,166.02,165.93,19.09200113]
[1730821508160,15.78870113,166.02,165.95,3.0132]
[1730821508664,15.78870113,166.02,165.93,19.09200113]
[1730821508665,15.78870113,166.02,165.93,22.10560113]
[1730821508849,15.78870113,166.02,165.93,19.09200113]
[1730821509054,15.78870113,166.02,165.93,4.62]
[1730821509257,14.47200113,166.0,165.93,4.62]
[1730821509454,3.0128,165.98,165.93,7.6337]
[1730821509654,1.3167,166.02,165.93,19.09200113]
[1730821510063,1.306,166.04,165.93,19.09200113]
[1730821510064,1.306,166.04,165.95,14.47200113]
[1730821510458,1.306,166.04,165.98,3.0127]
[1730821510665,1.3352,166.05,165.97,14.47200113]
[1730821510867,15.79940113,166.07,165.97,14.47200113]
[1730821511269,26.59264516,166.07,165.97,14.47200113]
[1730821511468,1.3274,166.07,165.99,14.47200113]
[1730821511663,1.3274,166.07,166.0,4.62]
[1730821511865,32.98039622,166.09,166.0,4.62]
[1730821512066,10.79523268,166.08,166.0,4.62]
[1730821512264,1.3907,166.09,166.02,3.012]
[1730821512265,3.0114,166.06,166.02,3.012]
[1730821513162,1.3907,166.09,166.0,4.62]
[1730821513366,21.11955847,166.15,166.07,14.47200113]
[1730821513367,10.46103059,166.14,166.07,14.47200113]
[1730821513572,10.7920834,166.14,166.07,14.47200113]
[1730821513769,20.79234925,166.15,166.06,19.09200113]
[1730821513965,10.7920834,166.14,166.06,19.09200113]
[1730821514164,35.64777574,166.17,166.06,19.09200113]
[1730821514366,10.7920834,166.16,166.06,19.09200113]
[1730821514669,25.14182831,166.17,166.06,19.09200113]
[1730821514964,25.14182831,166.17,166.06,22.10320113]
[1730821515268,14.47200113,166.09,166.02,4.62]
[1730821515479,3.0119,166.03,165.97,3.013]
[1730821515776,14.47200113,166.06,165.97,4.62]
[1730821515973,14.47200113,166.02,165.93,4.62]
[1730821516272,14.47200113,165.99,165.9,4.62]
[1730821516567,14.47200113,165.99,165.89,14.47200113]
[1730821516568,3.0133,165.96,165.89,4.62]
[1730821516775,4.0414,165.98,165.89,4.62]
[1730821517169,3.0137,165.94,165.89,4.62]
[1730821517566,4.0414,165.98,165.86,23.16223329]
[1730821517768,3.0137,165.94,165.87,4.62]
[1730821517972,4.0414,165.98,165.87,4.62]
[1730821518171,27.20363329,165.98,165.84,4.0425]
[1730821518469,3.0141,165.92,165.87,4.62]
[1730821518872,3.0143,165.91,165.85,7.6351]
[1730821519070,23.16223329,165.95,165.85,4.62]
[1730821519370,3.0136,165.94,165.86,3.015]
[1730821519569,4.62,165.97,165.85,4.62]
[1730821520075,3.0135,165.95,165.88,3.0145]
[1730821520272,4.62,165.97,165.86,23.16223329]
[1730821520477,4.62,165.97,165.85,4.62]
[1730821521073,3.0142,165.91,165.85,7.635]
[1730821521874,3.0145,165.89,165.85,4.62]
[1730821522068,4.62,165.97,165.84,4.62]
[1730821522468,23.16223329,165.95,165.84,4.62]
[1730821522973,3.0143,165.91,165.86,3.0149]
[1730821523170,4.62,165.97,165.84,4.62]
[1730821523577,3.0138,165.93,165.88,3.0146]
[1730821524276,4.62,165.97,165.86,23.16223329]
[1730821524973,4.62,165.97,165.87,3.0148]
[1730821525178,4.62,165.97,165.86,23.16223329]
[1730821525577,4.62,165.97,165.85,3.015]
[1730821525783,4.62,165.97,165.84,4.62]
[1730821525980,3.0139,165.93,165.87,3.0148]
[1730821526178,4.62,165.97,165.86,23.16223329]
[1730821526379,4.0414,165.98,165.86,23.16223329]
[1730821526574,3.0136,165.94,165.89,3.0143]
[1730821526776,4.0414,165.98,165.86,23.16223329]
[1730821527178,27.20363329,165.98,165.85,2.7331]
[1730821527386,27.20363329,165.98,165.84,4.62]
[1730821527387,23.16223329,165.95,165.84,4.62]
[1730821527885,3.0143,165.9,165.85,3.015]
[1730821528076,23.16223329,165.95,165.84,4.62]
[1730821528473,3.0139,165.92,165.87,3.0148]
[1730821529892,3.0146,165.89,165.84,3.0153]
[1730821530085,23.16223329,165.95,165.84,4.62]
[1730821530387,3.0148,165.87,165.83,3.0154]
[1730821530585,23.16223329,165.93,165.81,4.6]
[1730821530989,23.16223329,165.89,165.77,1.3193]
[1730821531289,4.0752,165.88,165.76,2.6475]
[1730821531484,4.0752,165.88,165.75,4.6]
[1730821531485,3.0161,165.8,165.75,4.6]
[1730821531783,4.6,165.86,165.72,67.88153329]
[1730821531983,23.16223329,165.84,165.72,48.0]
[1730821532192,23.16223329,165.84,165.74,3.0171]
[1730821532380,23.16223329,165.84,165.72,4.6]
[1730821532791,27.76223329,165.86,165.73,23.16223329]
[1730821532990,4.6,165.86,165.73,26.13509183]
[1730821533185,3.016,165.81,165.75,3.0168]
[1730821533492,27.76223329,165.86,165.75,3.0168]
[1730821533694,3.0163,165.79,165.74,3.0171]
[1730821533896,27.76223329,165.86,165.73,23.16223329]
[1730821534082,27.76223329,165.86,165.72,4.6]
[1730821534283,23.16223329,165.83,165.7,23.16223329]
[1730821534584,23.16223329,165.83,165.71,4.6]
[1730821534788,3.0162,165.8,165.73,3.0173]
[1730821534989,23.16223329,165.83,165.73,3.0173]
[1730821535290,4.6,165.86,165.73,23.16223329]
[1730821536189,23.16223329,165.84,165.71,4.6]
[1730821536592,3.0165,165.78,165.73,3.0173]
[1730821536794,23.16223329,165.82,165.71,4.6]
[1730821537290,23.16223329,165.82,165.71,7.6176]
[1730821537490,23.16223329,165.79,165.61,43.4]
[1730821537685,3.9472,165.78,165.65,4.6]
[1730821537885,3.9472,165.78,165.66,4.6]
[1730821538290,3.0179,165.7,165.65,7.6188]
[1730821538686,3.0179,165.7,165.64,55.19169731]
[1730821538883,23.16223329,165.76,165.64,55.19169731]
[1730821539098,3.0177,165.72,165.64,55.19169731]
[1730821539692,3.0181,165.69,165.64,4.6]
[1730821539900,23.16223329,165.76,165.64,27.76223329]
[1730821540091,3.9472,165.78,165.64,27.76223329]
[1730821540289,6.9638,165.78,165.66,23.16223329]
[1730821540491,3.9472,165.78,165.66,23.16223329]
[1730821540990,3.0169,165.76,165.66,23.16223329]
[1730821541190,2.6677,165.78,165.66,23.16223329]
[1730821541594,2.6677,165.78,165.69,23.16223329]
[1730821541795,2.6677,165.78,165.62,4.0305]
[1730821541796,2.5943,165.83,165.74,23.16223329]
[1730821542105,2.5943,165.83,165.75,4.6]
[1730821543193,4.6,165.89,165.75,4.6]
[1730821543495,3.0152,165.86,165.77,23.16223329]
[1730821543688,2.6554,165.88,165.77,23.16223329]
[1730821543892,3.0152,165.86,165.81,3.0157]
[1730821544091,2.6554,165.88,165.77,23.16223329]
[1730821544292,2.6554,165.88,165.75,27.76223329]
[1730821544500,2.6554,165.88,165.78,3.0163]
[1730821544696,2.6554,165.88,165.75,27.76223329]
[1730821544897,3.0156,165.83,165.78,3.0164]
[1730821545702,2.6554,165.88,165.76,4.6]
[1730821546699,26.47440887,166.08,165.76,4.6]
[1730821546700,43.44,165.98,165.78,23.16223329]
[1730821546904,23.16223329,165.94,165.78,23.16223329]
[1730821547292,3.0147,165.88,165.83,3.0155]
[1730821547901,23.16223329,165.94,165.78,23.16223329]
[1730821548103,23.16223329,165.94,165.86,3.015]
[1730821548696,3.0143,165.91,165.86,3.015]
[1730821549500,3.0143,165.9,165.86,3.015]
[1730821549802,23.16223329,165.96,165.83,27.76223329]
[1730821549996,3.0141,165.92,165.83,27.76223329]
[1730821550898,23.16223329,165.96,165.86,3.0148]
[1730821551105,3.0141,165.91,165.86,3.0148]
[1730821551404,23.16223329,165.96,165.83,4.6]
[1730821551604,3.0139,165.93,165.85,3.0152]
[1730821551805,23.16223329,165.96,165.85,3.0152]
[1730821552002,4.0239,165.97,165.86,23.16223329]
[1730821552199,3.013,165.98,165.88,23.16223329]
[1730821552503,29.11883329,166.05,165.91,23.16223329]
[1730821552706,29.11883329,166.05,165.92,4.6]
[1730821553006,29.11883329,166.05,165.95,3.0133]
[1730821553504,2.581,166.08,165.98,3.0128]
[1730821553706,2.581,166.08,165.94,23.16223329]
[1730821553999,3.0115,166.06,165.97,23.16223329]
[1730821554208,3.0115,166.06,166.01,3.0123]
[1730821555503,3.011,166.08,165.98,4.6]
[1730821555701,3.011,166.08,166.0,23.16223329]
[1730821556503,3.011,166.08,166.03,3.0119]
[1730821556804,25.82063329,166.16,166.04,4.6]
[1730821557003,2.6584,166.16,166.06,23.16223329]
[1730821557305,1.3837,166.16,166.06,23.16223329]
[1730821557505,3.0099,166.14,166.06,23.16223329]
[1730821557904,3.0099,166.14,166.08,3.011]
[1730821558304,23.16223329,166.19,166.06,23.16223329]
[1730821558704,27.10703329,166.21,166.06,23.16223329]
[1730821559409,27.10703329,166.21,166.04,4.6]
[1730821559410,3.0095,166.17,166.12,3.0102]
[1730821559704,27.10703329,166.21,166.12,4.6]
[1730821560107,3.0092,166.18,166.12,7.6102]
[1730821560508,3.0102,166.13,166.08,26.17313329]
[1730821560703,25.72333329,166.21,166.09,4.58]
[1730821561306,23.16223329,166.24,166.11,23.16223329]
[1730821561612,1.2835,166.25,166.14,23.16223329]
[1730821561808,1.2835,166.25,166.15,4.58]
[1730821562010,3.0085,166.22,166.15,7.5896]
[1730821562210,1.2835,166.25,166.15,7.5896]
[1730821562410,3.0085,166.22,166.15,4.58]
[1730821562617,1.2835,166.25,166.15,4.58]
[1730821564816,24.48653329,166.28,166.15,4.58]
[1730821565015,3.0081,166.25,166.19,3.0089]
[1730821565219,24.48653329,166.28,166.15,4.58]
[1730821565611,3.0081,166.25,166.17,3.0093]
[1730821565914,24.48653329,166.28,166.15,4.58]
[1730821566308,3.0081,166.25,166.17,3.0093]
[1730821566513,24.48653329,166.28,166.17,3.0093]
[1730821566819,24.48653329,166.28,166.15,4.58]
[1730821567719,3.0083,166.23,166.18,3.0092]
[1730821568020,24.48653329,166.28,166.15,4.58]